[Event "Bionext Festival 2019"]
[Site "Chihuahua"]
[Date "2019.12.01"]
[Round "6.2"]
[White "Cori, Jorge"]
[Black "Martinez Molina, Carlos Al"]
[Result "1-0"]
[ECO "A61"]
[WhiteElo "2651"]
[BlackElo "2169"]
[Annotator "ChessBase"]
[PlyCount "55"]
[EventDate "2019.11.30"]
[EventType "swiss"]
[EventCountry "MEX"]
[SourceTitle "playchess.com"]
[Source "ChessBase"]
[SourceQuality "1"]
[TimeControl "5400+30"]

1. d4 {[%emt 0:00:00]} c5 {[%emt 0:01:08]} 2. d5 {[%emt 0:00:00]} Nf6 {[%emt 0:00:07]} 3. c4 {[%emt 0:00:00]} e6 {[%emt 0:00:15]} 4. Nc3 {[%emt 0:00:05]} exd5 {[%emt 0:00:05]} 5. cxd5 {[%emt 0:00:04]} d6 {[%emt 0:00:05]} 6. Nf3 {[%emt 0:00:03]} g6 {[%emt 0:00:44]} 7. Bf4 {[%emt 0:00:05]} Bg7 {[%emt 0:03:32]} 8. h3 {[%emt 0:01:02]} O-O {[%emt 0:00:59]} 9. e3 {[%emt 0:00:03]} Na6 {[%emt 0:02:55]} 10. Bc4 {[%emt 0:04:06]} Nc7 {[%emt 0:02:32]} 11. a4 {[%emt 0:00:58]} a6 {[%emt 0:07:30]} 12. O-O {[%emt 0:05:34]} Rb8 {[%emt 0:04:32]} 13. a5 {[%emt 0:00:06]} b5 {[%emt 0:03:30]} 14. axb6 {[%emt 0:00:06]} Rxb6 {[%emt 0:00:04]} 15. Qe2 {[%emt 0:04:57]} Re8 {[%emt 0:04:21]} 16. Rac1 {[%emt 0:02:25]} Nh5 {[%emt 0:06:02]} 17. Bh2 {[%emt 0:00:19]} f5 {[%emt 0:01:24]} 18. Na4 {[%emt 0:08:16]} Rb4 {[%emt 0:08:27]} 19. Nxc5 {[%emt 0:00:06]} Rxc4 {[%emt 0:00:06]} 20. Qxc4 {[%emt 0:00:09]} dxc5 {[%emt 0:00:05]} 21. Bxc7 {[%emt 0:02:12]} Qxc7 {[%emt 0:00:06]} 22. b4 {[%emt 0:00:18]} Re4 {[%emt 0:05:52]} 23. d6+ {[%emt 0:06:22]} Rxc4 {[%emt 0:01:56]} 24. dxc7 {[%emt 0:00:05]} Rxc1 {[%emt 0:00:11]} 25. Rxc1 {[%emt 0:00:03]} cxb4 {[%emt 0:02:08]} 26. Rd1 {[%emt 0:00:05]} Kf7 {[%emt 0:01:04]} 27. Rd8 {[%emt 0:00:08]} Bb7 {[%emt 0:00:04]} 28. Rb8 {[%emt 1:06:23] Ke8} 1-0

[Event "Bionext Festival 2019"]
[Site "Chihuahua"]
[Date "2019.12.01"]
[Round "6.8"]
[White "Lugo Aldana, Alejandro"]
[Black "Gomez, Zuniga David Fernand"]
[Result "0-1"]
[ECO "B87"]
[WhiteElo "1570"]
[BlackElo "2078"]
[Annotator "NA RC"]
[PlyCount "86"]
[EventDate "2019.11.30"]
[EventType "swiss"]
[EventCountry "MEX"]
[SourceTitle "playchess.com"]
[Source "ChessBase"]
[SourceQuality "1"]
[TimeControl "5400+30"]

1. e4 {[%emt 1:30:30]} c5 {[%emt 1:30:30]} 2. Nf3 {[%emt 0:00:30]} d6 {[%emt 0:00:30]} 3. d4 {[%emt 0:00:30]} cxd4 {[%emt 0:00:30]} 4. Nxd4 {[%emt 0:00:30]} Nf6 {[%emt 0:00:30]} 5. Nc3 {[%emt 0:00:30]} a6 {[%emt 0:00:30]} 6. Bc4 {[%emt 0:00:30]} e6 {[%emt 0:00:30]} 7. Bb3 {[%emt 0:00:30]} b5 {[%emt 0:00:30]} 8. O-O {[%emt 0:00:30]} b4 {[%emt 0:00:30]} 9. Na4 {[%emt 0:00:30]} Bd7 {[%emt 0:00:30]} 10. c3 {[%emt 0:00:30]} Nc6 {[%emt 0:00:30]} 11. cxb4 {[%emt 0:00:30]} Rb8 {[%emt 0:00:30]} 12. Nc3 {[%emt 0:00:30]} Rxb4 {[%emt 0:00:30]} 13. Nxc6 {[%emt 0:00:30]} Bxc6 {[%emt 0:00:30]} 14. f3 {[%emt 0:00:30]} Be7 {[%emt 0:00:30]} 15. Qe2 {[%emt 0:00:30]} Qb6+ {[%emt 0:00:30]} 16. Be3 {[%emt 0:00:30]} Qb7 {[%emt 0:00:30]} 17. Rfd1 {[%emt 0:00:30]} a5 {[%emt 0:00:30]} 18. Rd2 {[%emt 0:00:30]} O-O {[%emt 0:00:30]} 19. Bc4 {[%emt 0:00:30]} Qb8 {[%emt 0:00:30]} 20. a3 {[%emt 0:00:30]} Rb7 {[%emt 0:00:30]} 21. Ba6 {[%emt 0:00:30]} Rd7 {[%emt 0:00:30]} 22. Qc4 {[%emt 0:00:30]} Rc7 {[%emt 0:00:30]} 23. Qe2 {[%emt 0:00:30]} Rd7 {[%emt 0:00:30]} 24. Qc4 {[%emt 0:00:30]} Qa8 {[%emt 0:00:30]} 25. Rad1 {[%emt 0:00:30]} d5 {[%emt 0:00:30]} 26. exd5 {[%emt 0:00:30]} Nxd5 {[%emt 0:00:30]} 27. Nxd5 {[%emt 0:00:30]} Rxd5 {[%emt 0:00:30]} 28. Rxd5 {[%emt 0:00:30]} Bxd5 {[%emt 0:00:30]} 29. Qb5 {[%emt 0:00:30]} Bf6 {[%emt 0:00:30]} 30. b4 {[%emt 0:00:30]} axb4 {[%emt 0:00:30]} 31. axb4 {[%emt 0:00:30]} Rb8 {[%emt 0:00:30]} 32. Qa4 {[%emt 0:00:30]} Rc8 {[%emt 0:00:30]} 33. b5 {[%emt 0:00:30]} Rc4 {[%emt 0:00:30]} 34. Qa5 {[%emt 0:00:30]} h5 {[%emt 0:00:30]} 35. Qd2 {[%emt 0:00:30]} Bxf3 {[%emt 0:00:30]} 36. gxf3 {[%emt 0:00:30]} Qxf3 {[%emt 0:00:30]} 37. Bf2 {[%emt 0:00:30]} h4 {[%emt 0:00:30]} 38. Qd3 {[%emt 0:00:30]} Rg4+ {[%emt 0:00:30]} 39. Kf1 {[%emt 0:00:30]} Qg2+ {[%emt 0:00:30]} 40. Ke1 Re4+ {[%emt 0:00:30]} 41. Be3 {[%emt 0:01:00]} Bg5 {[%emt 0:00:30]} 42. Bb7 {[%emt 0:00:30]} Qg1+ {[%emt 0:00:30]} 43. Ke2 {[%emt 0:00:30]} Rxe3+ {[%emt 0:00:30]} 0-1

[Event "Bionext Festival 2019"]
[Site "Chihuahua"]
[Date "2019.12.01"]
[Round "6.9"]
[White "Sierra Arballo, Jesus"]
[Black "Guerrero Rodriguez, Alejandra"]
[Result "1/2-1/2"]
[ECO "A40"]
[WhiteElo "2046"]
[BlackElo "2016"]
[Annotator "NA"]
[PlyCount "108"]
[EventDate "2019.11.30"]
[EventType "swiss"]
[EventCountry "MEX"]
[SourceTitle "playchess.com"]
[Source "ChessBase"]
[SourceQuality "1"]
[TimeControl "5400+30"]

1. e4 {[%emt 1:30:30]} c5 {[%emt 1:30:30]} 2. Nf3 {[%emt 0:00:30]} g6 {[%emt 0:00:30]} 3. c4 {[%emt 0:00:30]} Bg7 {[%emt 0:00:30]} 4. d4 {[%emt 0:00:30]} cxd4 {[%emt 0:00:30]} 5. Nxd4 {[%emt 0:00:30]} Qb6 {[%emt 0:00:30]} 6. Nb5 {[%emt 0:00:30]} a6 {[%emt 0:00:30]} 7. Be3 {[%emt 0:00:30]} Qa5+ {[%emt 0:00:30]} 8. N5c3 {[%emt 0:00:30]} Nf6 {[%emt 0:00:30]} 9. f3 {[%emt 0:00:30]} O-O {[%emt 0:00:30]} 10. Be2 {[%emt 0:00:30]} Nc6 {[%emt 0:00:30]} 11. O-O {[%emt 0:00:30]} d6 {[%emt 0:00:30]} 12. Nd2 {[%emt 0:00:30]} Nd7 {[%emt 0:00:30]} 13. Rc1 {[%emt 0:00:30]} e6 {[%emt 0:00:30]} 14. Nb3 {[%emt 0:00:30]} Qc7 {[%emt 0:00:30]} 15. Qd2 {[%emt 0:00:30]} Nce5 {[%emt 0:00:30]} 16. Kh1 {[%emt 0:00:30]} Nc5 {[%emt 0:00:30]} 17. Rfd1 {[%emt 0:00:30]} Nxb3 {[%emt 0:00:30]} 18. axb3 {[%emt 0:00:30]} Rd8 {[%emt 0:00:30]} 19. Na4 {[%emt 0:00:30]} Qe7 {[%emt 0:00:30]} 20. Bc5 {[%emt 0:00:30]} Bf8 {[%emt 0:00:30]} 21. Nb6 {[%emt 0:00:30]} Rb8 {[%emt 0:00:30]} 22. Rc3 {[%emt 0:00:30]} Qc7 {[%emt 0:00:30]} 23. Bg1 {[%emt 0:00:30]} Nd7 {[%emt 0:00:30]} 24. Na4 {[%emt 0:00:30]} b6 {[%emt 0:00:30]} 25. h4 {[%emt 0:00:30]} Nc5 {[%emt 0:00:30]} 26. Bh2 {[%emt 0:00:30]} Qe7 {[%emt 0:00:30]} 27. Bg3 {[%emt 0:00:30]} Bg7 {[%emt 0:00:30]} 28. Kg1 {[%emt 0:00:30]} Nxa4 {[%emt 0:00:30]} 29. bxa4 {[%emt 0:00:30]} Bxc3 {[%emt 0:00:30]} 30. Qxc3 {[%emt 0:00:30]} e5 {[%emt 0:00:30]} 31. b4 {[%emt 0:00:30]} Be6 {[%emt 0:00:30]} 32. Bf2 {[%emt 0:00:30]} Rdc8 {[%emt 0:00:30]} 33. Rc1 {[%emt 0:00:30]} Rc7 {[%emt 0:00:30]} 34. c5 {[%emt 0:00:30]} bxc5 {[%emt 0:00:30]} 35. bxc5 {[%emt 0:00:30]} Rb3 {[%emt 0:00:30]} 36. Qa5 {[%emt 0:00:30]} dxc5 {[%emt 0:00:30]} 37. Bxa6 {[%emt 0:00:30]} Rb2 {[%emt 0:00:30]} 38. Rxc5 {[%emt 0:00:30]} Rxc5 {[%emt 0:00:30]} 39. Qxc5 {[%emt 0:00:30]} Qxc5 {[%emt 0:00:30]} 40. Bxc5 {[%emt 0:00:30]} Ra2 {[%emt 0:00:30]} 41. Bb5 {[%emt 0:00:30]} Bb3 {[%emt 0:00:30]} 42. Bd6 {[%emt 0:00:30]} Bxa4 {[%emt 0:00:30]} 43. Bxa4 {[%emt 0:00:30]} Rxa4 {[%emt 0:00:30]} 44. Bxe5 {[%emt 0:00:30]} Ra2 {[%emt 0:00:30]} 45. Bf6 {[%emt 0:00:30]} h5 {[%emt 0:00:30]} 46. Kh2 {[%emt 0:00:30]} Kf8 {[%emt 0:00:30]} 47. Kh3 {[%emt 0:00:30]} Ke8 {[%emt 0:00:30]} 48. g4 {[%emt 0:00:30]} Kd7 {[%emt 0:00:30]} 49. Kg3 {[%emt 0:00:30]} Ke6 {[%emt 0:00:30]} 50. e5 {[%emt 0:00:30]} Re2 {[%emt 0:00:30]} 51. gxh5 {[%emt 0:00:30]} gxh5 {[%emt 0:00:30]} 52. Kf4 {[%emt 0:00:30]} Rg2 {[%emt 0:00:30]} 53. Bd8 {[%emt 0:00:30] Kxe5+ Ke4+ Ke6 Kf4} Rg6 {[%emt 0:00:30]} 54. Bg5 {[%emt 0:00:30]} Rg8 {[%emt 0:00:30]} 1/2-1/2

[Event "Bionext Festival 2019"]
[Site "Chihuahua"]
[Date "2019.12.01"]
[Round "6.10"]
[White "Della Morte, Pablo"]
[Black "Rubio Ramos, Jorge Yadir"]
[Result "1-0"]
[ECO "B31"]
[WhiteElo "2309"]
[BlackElo "1819"]
[Annotator "ChessBase"]
[PlyCount "47"]
[EventDate "2019.11.30"]
[EventType "swiss"]
[EventCountry "MEX"]
[SourceTitle "playchess.com"]
[Source "ChessBase"]
[SourceQuality "1"]
[TimeControl "5400+30"]

1. e4 {[%emt 1:30:30]} c5 {[%emt 1:30:30]} 2. Nf3 {[%emt 0:00:30]} Nc6 {[%emt 0:00:30]} 3. Bb5 {[%emt 0:00:30]} g6 {[%emt 0:00:30]} 4. Bxc6 {[%emt 0:00:30]} dxc6 {[%emt 0:00:30]} 5. d3 {[%emt 0:00:30]} Bg7 {[%emt 0:00:30]} 6. h3 {[%emt 0:00:30]} Qc7 {[%emt 0:00:30]} 7. Nc3 {[%emt 0:00:30]} Nf6 {[%emt 0:00:30]} 8. Be3 {[%emt 0:00:30]} b6 {[%emt 0:00:30]} 9. Qd2 {[%emt 0:00:30]} e5 {[%emt 0:00:30]} 10. Bh6 {[%emt 0:00:30]} O-O {[%emt 0:00:30]} 11. Nh2 {[%emt 0:00:30]} Ne8 {[%emt 0:00:30]} 12. O-O {[%emt 0:00:30]} f6 {[%emt 0:00:30]} 13. Bxg7 {[%emt 0:00:30]} Nxg7 {[%emt 0:00:30]} 14. f4 {[%emt 0:00:30]} Bd7 {[%emt 0:00:30]} 15. Rf2 {[%emt 0:00:30]} f5 {[%emt 0:00:30]} 16. fxe5 {[%emt 0:00:30]} Qxe5 {[%emt 0:00:30]} 17. Nf3 {[%emt 0:00:30]} Qc7 {[%emt 0:00:30]} 18. Qh6 {[%emt 0:00:30]} Ne6 {[%emt 0:00:30]} 19. Raf1 {[%emt 0:00:30]} Rf7 {[%emt 0:00:30]} 20. exf5 {[%emt 0:00:30]} Rxf5 {[%emt 0:00:30]} 21. Ne4 {[%emt 0:00:30]} Raf8 {[%emt 0:00:30]} 22. g4 {[%emt 0:00:30]} Rd5 {[%emt 0:00:30]} 23. Nfg5 {[%emt 0:00:30]} Rxg5 24. Nxg5 1-0